[Event "SixDays Budapest March GM-A 2023"]
[Site "Budapest"]
[Date "2023.03.29"]
[Round "9.4"]
[White "Arfan, Aditya Bagus"]
[Black "Kushagra Mohan"]
[Result "0-1"]
[ECO "A05"]
[WhiteElo "2374"]
[BlackElo "2396"]
[Annotator "TA"]
[PlyCount "148"]
[EventDate "2023.03.24"]
[EventType "tourn"]
[EventCountry "HUN"]
[SourceTitle "playchess.com"]
[Source "ChessBase"]
[SourceQuality "1"]
[TimeControl "5400+30"]

{[%evp 12,148,0,3,10,0,0,0,4,0,0,0,0,0,8,0,0,0,24,26,19,25,37,51,84,89,87,45,45,34,39,38,41,37,46,36,78,24,40,27,97,86,79,73,61,-1,0,0,0,0,0,0,0,-25,10,0,20,0,70,70,77,41,41,41,116,30,39,20,24,0,0,0,0,0,0,0,0,0,47,0,0,0,0,0,4,-518,-434,-520,-520,-520,-520,-491,-172,-520,-520,-520,-520,-520,-520,-520,-520,-520,-520,-520,-520,-513,-497,-513,-500,-481,-412,-647,-508,-4830,-1831,-3006,-1874,-12841,-12841,-12842,-12843,-12843,-12843,-12844,-12844,-12845,-12844,-12845,-12845,-12845,-12846,-12848,-12848,-12848,-12848,-29986,-12848,-12849,-12849]} 1. Nf3 {[%emt 0:13:37]} Nf6 {[%emt 0:00:34]} 2. c4 {[%emt 0:00:59]} g6 {[%emt 0:00:04]} 3. b3 {[%emt 0:00:04]} Bg7 {[%emt 0:00:03]} 4. Bb2 {[%emt 0:00:04]} O-O {[%emt 0:00:05]} 5. g3 {[%emt 0:00:03]} d6 {[%emt 0:00:03]} 6. Bg2 {[%emt 0:00:17]} e5 {[%emt 0:00:05]} 7. d3 {[%emt 0:00:20]} a5 {[%emt 0:00:13] A15: English Opening: 1...Nf6.} 8. O-O {[%emt 0:00:48]} Na6 {[%emt 0:00:29]} 9. Nc3 {[%emt 0:03:59]} Re8 {[%emt 0:00:58] The position is equal.} 10. e3 {[%emt 0:02:38]} c6 {[%emt 0:01:38]} 11. Rc1 {[%emt 0:03:52] [#]} Rb8 $146 {[%emt 0:03:15]} ({Predecessor:} 11... Bf5 12. Qd2 Nb4 13. e4 Bg4 14. h3 Bxf3 15. Bxf3 h5 16. Rcd1 h4 17. Bc1 Nd7 {0-1 Ikeda,J (2349)-Brandenburg,D (2538) Dieren op 2011 (6)}) 12. Qe2 {[%emt 0:05:35]} Bg4 {[%emt 0:11:43]} 13. h3 {[%emt 0:00:38]} Bd7 {[%emt 0:00:02]} 14. Rfd1 {[%emt 0:04:11]} b5 {[%emt 0:01:03]} 15. Ne4 {[%emt 0:02:54]} Nxe4 {[%emt 0:03:30]} 16. dxe4 {[%emt 0:00:11] Strongly threatening cxb5.} Bf8 {[%emt 0:00:18] [#]} 17. c5 $1 {[%emt 0:15:10]} f6 {[%emt 0:08:05]} (17... dxc5 $2 18. Nxe5 (18. Bxe5 Rb7 $16) 18... Rb7 19. Qf3 Rxe5 20. Bxe5 $18) (17... Nxc5 18. Rxc5) 18. cxd6 {[%emt 0:02:03]} Re6 {[%emt 0:01:23]} 19. Nh4 {[%emt 0:11:58]} ({Much weaker is} 19. Ba3 Nb4 $11) 19... Rxd6 {[%emt 0:05:17]} 20. f4 {[%emt 0:00:18]} Rxd1+ {[%emt 0:06:37]} 21. Rxd1 {[%emt 0:00:01] Hoping for Qd2.} Qc7 {[%emt 0:00:13]} 22. Nf3 {[%emt 0:00:37][%cal Rf4e5]} Bg7 $1 {[%emt 0:00:08]} 23. Qd2 {[%emt 0:02:31]} Nc5 {[%emt 0:04:20]} 24. Ba3 {[%emt 0:03:28]} (24. b4 $16 Na4 25. Qxd7 Qxd7 26. Rxd7 Nxb2 27. bxa5) 24... b4 $11 {[%emt 0:01:58]} 25. Bb2 {[%emt 0:00:02]} Rd8 {[%emt 0:04:05]} (25... Be6 $11 {keeps the balance.}) 26. Qc2 {[%emt 0:01:01]} Ne6 {[%emt 0:00:53]} 27. Qc4 {[%emt 0:06:48]} (27. f5 $5 {[%cal Rf5e6]} Nf8 28. g4 $14) 27... Kh8 {[%emt 0:01:12]} 28. f5 {[%emt 0:00:15]} (28. fxe5 $14 fxe5 29. Kh2) 28... Nf8 {[%emt 0:01:28]} 29. Qf7 {[%emt 0:05:58]} Qc8 {[%emt 0:03:09]} 30. g4 {[%emt 0:01:46]} Be8 {[%emt 0:01:24]} 31. Rxd8 {[%emt 0:00:01]} Qxd8 {[%emt 0:00:01]} 32. Qc4 {[%emt 0:04:38]} g5 {[%emt 0:06:08]} 33. Qc5 {[%emt 0:03:10]} h5 {[%emt 0:09:11]} 34. Kf2 {[%emt 0:02:13]} h4 {[%emt 0:02:27]} ({Better is} 34... Qd3 $11) 35. Bf1 $1 $14 {[%emt 0:01:19]} Kh7 {[%emt 0:00:47]} 36. Ke1 {[%emt 0:00:04]} Nd7 {[%emt 0:02:53]} 37. Qxc6 {[%emt 0:02:18] Black is weak on the light squares} Nb6 {[%emt 0:00:33]} ({Black should play} 37... Qb6 $14 38. Qxb6 Nxb6) 38. Qe6 {[%emt 0:00:42]} (38. Qc5 $1 $16 {[%cal Rc5a5]}) 38... a4 {[%emt 0:00:34]} 39. Bc1 {[%emt 0:01:09]} a3 {[%emt 0:01:51]} 40. Bd2 {[%emt 0:00:21]} Bf8 {[%emt 0:00:01]} 41. Ba6 {[%emt 0:02:17]} Kg7 {[%emt 0:04:47]} 42. Nxe5 {[%emt 0:00:11]} fxe5 {[%emt 0:00:06]} 43. Qxe5+ {[%emt 0:00:29]} Kh7 {[%emt 0:00:15]} 44. Qe6 {[%emt 0:00:33] e5 is the strong threat.} Nd7 {[%emt 0:04:21]} (44... Qb8 $11) 45. Bc4 {[%emt 0:00:25]} (45. Bb5 $1 $14) 45... Qe7 $11 {[%emt 0:00:32] Threatens to win with ...Qxe6.} 46. Qg8+ {[%emt 0:00:28]} Kh6 {[%emt 0:00:19] White must now prevent ...Bg7.} 47. Ke2 {[%emt 0:01:00][%cal Od2b4] And now Bxb4! would win.} Bg7 {[%emt 0:02:51] Prevents Bxb4.} (47... Nf6 $5 48. Qh8+ $8 Nh7 $11) 48. Qe6+ {[%emt 0:00:26][%mdl 8192] This costs White the game.} (48. Bxb4 $1 $11 {and White is okay.} Qxe4 49. Qe6+ (49. Bxa3 $2 {is the wrong capture.} Qc2+ 50. Kf1 Qb1+ 51. Ke2 Qxa2+ 52. Kd1 Nf6 $19) 49... Qxe6 50. fxe6 (50. Bxe6 Bb2 $11)) 48... Qxe6 $19 {[%emt 0:00:46]} 49. fxe6 {[%emt 0:00:07]} Ne5 {[%emt 0:00:53]} 50. Bxb4 {[%emt 0:00:40] [#]} Nxc4 {[%emt 0:00:02]} 51. bxc4 {[%emt 0:00:01] [#]} Bb2 {[%emt 0:00:32]} 52. e5 $2 {[%emt 0:01:07]} (52. Ba5 {was the crucial defense.}) 52... Kg6 {[%emt 0:00:58]} 53. Kd3 {[%emt 0:00:24]} Bc6 {[%emt 0:00:40] aiming for ...Bg2.} 54. e4 {[%emt 0:00:44]} Bxe5 {[%emt 0:00:51]} 55. Bxa3 {[%emt 0:00:04]} Kf6 {[%emt 0:00:05] Repels Be7+} 56. e7 {[%emt 0:00:54]} Kf7 {[%emt 0:00:02]} 57. Bc5 {[%emt 0:00:35]} Bf6 {[%emt 0:00:06]} 58. Be3 {[%emt 0:00:33]} Bxe7 {[%emt 0:00:54]} ({Stronger than} 58... Kxe7 59. e5 $17) 59. Bb6 {[%emt 0:00:22]} Ke6 {[%emt 0:00:24]} 60. Ke3 {[%emt 0:00:35]} Bd6 {[%emt 0:00:38]} 61. Bd8 {[%emt 0:00:14]} (61. Kf3 $142 Bf4 62. Bd4) 61... Bf4+ {[%emt 0:01:10]} 62. Kf3 {[%emt 0:00:49]} (62. Kd3 $142 Bd7 63. Ba5) 62... Ke5 {[%emt 0:02:19] ...Kd4 would be deadly.} 63. Bc7+ {[%emt 0:00:06]} Kd4 {[%emt 0:00:01][%mdl 64] Discovered Attack} 64. Bxf4 {[%emt 0:00:07]} Bxe4+ {[%emt 0:00:03]} (64... gxf4 $2 65. Kxf4 Bxe4 66. g5 $16) 65. Kf2 {[%emt 0:00:15]} gxf4 {[%emt 0:00:01]} 66. a4 {[%emt 0:00:58]} Kxc4 {[%emt 0:00:11][%mdl 4096] Endgame KB-K3P} 67. a5 {[%emt 0:00:11]} Kd4 {[%emt 0:00:57]} 68. a6 {[%emt 0:01:18]} Bd5 {[%emt 0:00:11]} 69. a7 {[%emt 0:00:09]} Ke4 {[%emt 0:00:05]} 70. Ke2 {[%emt 0:00:52]} f3+ {[%emt 0:00:11]} 71. Kd2 {[%emt 0:00:10]} Kf4 {[%emt 0:00:05] ( -> ...f2)} 72. g5 {[%emt 0:00:13]} Kxg5 {[%emt 0:00:13]} 73. Ke3 {[%emt 0:00:19]} Bb7 {[%emt 0:00:08]} (73... Ba8 $142 74. Kd2 Kf4 75. Kd1 f2 76. Ke2 Kg3 77. Ke3 f1=Q 78. Kd4 Qb5 79. Kc3 Kf4 80. Kd4 Qb4+ 81. Kd3 Be4+ 82. Ke2 Qb2+ 83. Kf1 Kf3 84. Kg1 Qg2#) 74. Kf2 {[%emt 0:00:15]} Kf4 {[%emt 0:00:01] Weighted Error Value: White=0.28 (precise) /Black=0.11 (very precise)} 0-1

[Event "SixDays Budapest March GM-A 2023"]
[Site "Budapest"]
[Date "2023.03.29"]
[Round "9.5"]
[White "Pap, Misa"]
[Black "Horvath, Adam"]
[Result "1/2-1/2"]
[ECO "C01"]
[WhiteElo "2403"]
[BlackElo "2458"]
[Annotator "TA"]
[PlyCount "41"]
[EventDate "2023.03.24"]
[EventType "tourn"]
[EventCountry "HUN"]
[SourceTitle "playchess.com"]
[Source "ChessBase"]
[SourceQuality "1"]
[TimeControl "5400+30"]

{[%evp 17,41,0,0,0,0,0,0,0,0,0,12,0,0,0,0,0,0,0,0,0,13,0,4,0,0,0]} 1. e4 {[%emt 0:06:02]} e6 {[%emt 0:00:41]} 2. d4 {[%emt 0:00:23]} d5 {[%emt 0:00:04]} 3. exd5 {[%emt 0:00:28]} exd5 {[%emt 0:00:05]} 4. Bd3 {[%emt 0:00:10]} Bd6 {[%emt 0:00:14]} 5. Nf3 {[%emt 0:00:32]} Nf6 {[%emt 0:00:16]} 6. O-O {[%emt 0:00:12]} O-O {[%emt 0:00:10]} 7. Bg5 {[%emt 0:00:07]} Bg4 {[%emt 0:00:32]} 8. Nbd2 {[%emt 0:00:20]} Nbd7 {[%emt 0:00:09]} 9. c3 {[%emt 0:00:26]} c6 {[%emt 0:00:07] The position is equal.} 10. Bh4 {[%emt 0:00:08] C01: French: Exchange Variation.} Re8 {[%emt 0:00:25]} 11. Qc2 {[%emt 0:00:08][%cal Od3h7]} Qc7 {[%emt 0:00:50]} 12. Bg3 {[%emt 0:00:27]} Bxg3 {[%emt 0:01:15]} 13. hxg3 {[%emt 0:00:07]} Re7 {[%emt 0:01:24]} 14. Rae1 {[%emt 0:00:10]} Rae8 {[%emt 0:00:07]} 15. Rxe7 {[%emt 0:00:28]} Rxe7 {[%emt 0:00:03]} 16. Re1 {[%emt 0:00:07]} Rxe1+ {[%emt 0:00:44]} 17. Nxe1 {[%emt 0:00:07] [#]} Qd6 $146 {[%emt 0:00:22]} ({Predecessor:} 17... Bh5 18. Nef3 Bg6 19. Nh4 Nf8 20. Nxg6 Nxg6 21. Nf3 Qe7 {½-½ Matikozian,A (2457)-Kavutskiy,K (2303) Los Angeles Metropolitan 12th 2011 (2)}) 18. Nef3 {[%emt 0:00:28]} Bh5 {[%emt 0:00:58]} 19. Qc1 {[%emt 0:00:11]} Qe6 {[%emt 0:00:41]} 20. Qe1 {[%emt 0:00:14]} Qxe1+ {[%emt 0:00:09]} 21. Nxe1 {[%emt 0:00:10] An uneventful encounter.   Weighted Error Value: White=0.03 (flawless) /Black=0.02 (flawless)} 1/2-1/2